bitfinex-derivatives/quotes_BTCF0:USTF0_20250703
["timestamp","ask_amount","ask_price","bid_price","bid_amount"]
[1751555763906,1.21458432,109490.0,109480.0,0.01657076]
[1751555764109,1.21458432,109490.0,109480.0,0.19917186]
[1751555765414,1.21458432,109490.0,109480.0,0.01657076]
[1751555765808,1.21458432,109490.0,109480.0,0.19917186]
[1751555766013,1.21458432,109490.0,109480.0,0.01657076]
[1751555767406,0.57311352,109490.0,109480.0,0.19917186]
[1751555767602,0.35861,109490.0,109480.0,0.8701106]
[1751555767808,0.2281793,109520.0,109510.0,0.1825344]
[1751555768109,1.0638517,109520.0,109510.0,0.275051]
[1751555768615,0.5781793,109520.0,109510.0,0.275051]
[1751555768814,0.5781793,109520.0,109510.0,0.545051]
[1751555769009,0.5781793,109520.0,109510.0,0.275051]
[1751555769312,0.3681793,109520.0,109510.0,0.565051]
[1751555769516,0.5055343,109520.0,109510.0,0.565051]
[1751555769719,0.5055343,109520.0,109510.0,0.275051]
[1751555770015,0.5105343,109520.0,109510.0,0.276051]
[1751555770210,0.008,109520.0,109510.0,0.576051]
[1751555770420,0.1905343,109520.0,109510.0,0.276051]
[1751555770612,0.5605343,109520.0,109510.0,0.276051]
[1751555771012,0.5605343,109520.0,109510.0,0.566051]
[1751555771318,0.358,109520.0,109510.0,0.9604498]
[1751555771518,0.008,109520.0,109510.0,0.9604498]
[1751555772110,0.1905344,109520.0,109510.0,0.9604498]
[1751555772310,0.5205344,109520.0,109510.0,0.566051]
[1751555772517,0.5205344,109520.0,109510.0,0.276051]
[1751555773218,0.9149332,109520.0,109510.0,0.276051]
[1751555774419,0.9149332,109520.0,109510.0,0.0935]
[1751555774617,0.9149332,109520.0,109510.0,0.2760511]
[1751555776421,0.5205344,109520.0,109510.0,0.2760511]
[1751555776922,0.5205344,109520.0,109510.0,0.5760511]
[1751555777222,0.5205344,109520.0,109510.0,0.2760511]
[1751555777415,0.008,109520.0,109510.0,0.6704499]
[1751555777619,0.008,109520.0,109510.0,0.9704499]
[1751555778516,0.378,109520.0,109510.0,0.6704499]
[1751555778724,0.5205344,109520.0,109510.0,0.5560511]
[1751555780020,0.5205344,109520.0,109510.0,0.2760511]
[1751555780223,0.5405344,109520.0,109510.0,0.5560511]
[1751555780415,0.9349332,109520.0,109510.0,0.2760511]
[1751555781325,0.9349332,109520.0,109510.0,0.5560511]
[1751555781525,0.5405344,109520.0,109510.0,0.2760511]
[1751555781722,0.9349332,109520.0,109510.0,0.2760511]
[1751555784819,0.5405344,109520.0,109510.0,0.2760511]
[1751555786025,0.9349332,109520.0,109510.0,0.2760511]
[1751555786320,0.9349332,109520.0,109510.0,0.0935]
[1751555786527,0.1825677,109500.0,109490.0,0.2282251]
[1751555786726,0.9319673,109500.0,109490.0,0.3215251]
[1751555787218,0.9631673,109500.0,109490.0,0.3215251]
[1751555787626,0.9651673,109500.0,109490.0,0.3225251]
[1751555788224,0.7825996,109500.0,109480.0,0.01653994]
[1751555788424,0.7825996,109500.0,109470.0,0.3705421]
[1751555788425,0.1826011,109480.0,109470.0,0.3705421]
[1751555788729,0.92199445,109480.0,109470.0,0.3705421]
[1751555788922,0.95319445,109480.0,109470.0,0.3383421]
[1751555789823,0.95219445,109480.0,109470.0,0.3383421]
[1751555790327,0.95219445,109480.0,109470.0,0.1844446]
[1751555790525,0.95719445,109480.0,109470.0,0.1854446]
[1751555790827,0.95719445,109480.0,109470.0,0.01641699]
[1751555790828,0.98989445,109480.0,109470.0,0.01641699]
[1751555791230,0.99908867,109480.0,109470.0,0.19903469]
[1751555792122,0.96638867,109480.0,109470.0,0.19903469]
[1751555792321,0.96638867,109480.0,109470.0,0.22983469]
[1751555792517,0.96638867,109480.0,109470.0,0.25993469]
[1751555792723,0.96638867,109480.0,109470.0,0.07731699]
[1751555792922,0.99908867,109480.0,109470.0,0.07744789]
[1751555793324,0.99908867,109480.0,109470.0,0.26006559]
[1751555794028,0.60468987,109480.0,109470.0,0.26006559]
[1751555794330,0.99908867,109480.0,109470.0,0.26006559]
[1751555795017,1.00008867,109480.0,109470.0,0.26006559]
[1751555800632,0.98509412,109480.0,109470.0,0.26006559]
[1751555800835,1.00041132,109480.0,109470.0,0.26006559]
[1751555803041,0.98509412,109480.0,109470.0,0.26006559]
[1751555804935,0.98509412,109480.0,109470.0,0.26014165]
[1751555805526,0.98509412,109480.0,109470.0,0.96454045]
[1751555805527,0.006,109480.0,109470.0,0.96454045]
[1751555805731,0.006,109480.0,109470.0,0.9507434]
[1751555805732,0.026,109480.0,109470.0,0.9507434]
[1751555805932,0.006,109480.0,109470.0,0.9507434]
[1751555806336,0.1886011,109480.0,109470.0,0.9507434]
[1751555806531,0.006,109480.0,109470.0,0.9507434]
[1751555807238,0.1886011,109480.0,109470.0,0.9507434]
[1751555807434,0.006,109480.0,109470.0,0.9507434]
[1751555808138,0.1886011,109480.0,109470.0,0.9507434]
[1751555808340,0.006,109480.0,109470.0,0.9507434]
[1751555810234,0.1886012,109480.0,109470.0,0.9507434]
[1751555810928,0.006,109480.0,109470.0,0.9507434]
[1751555811329,0.1886011,109480.0,109470.0,0.9507434]
[1751555812036,0.006,109480.0,109470.0,0.9507434]
[1751555812330,0.24347776,109500.0,109490.0,0.1825845]
[1751555812536,0.55782586,109500.0,109490.0,0.1825845]
[1751555812737,0.55782586,109500.0,109490.0,0.2454845]
[1751555813335,0.55782586,109500.0,109490.0,0.5554845]
[1751555813937,0.55782586,109500.0,109490.0,0.2454845]
[1751555814141,0.56182586,109500.0,109490.0,0.2454845]
[1751555814540,0.56782586,109500.0,109490.0,0.2464845]
[1751555815541,0.56182586,109500.0,109490.0,0.2454845]
[1751555815835,0.56382586,109500.0,109490.0,0.2464845]
[1751555816038,0.146,109500.0,109490.0,0.9608833]
[1751555816237,0.41050227,109530.0,109520.0,0.1825345]
[1751555816438,0.73838461,109530.0,109520.0,0.1825345]
[1751555816641,0.93580654,109530.0,109520.0,0.2789345]
[1751555817039,1.33020534,109530.0,109520.0,0.2789345]
[1751555817240,0.93580654,109530.0,109520.0,0.2789345]
[1751555817440,0.93580654,109530.0,109520.0,0.5789345]
[1751555817642,0.91406879,109530.0,109520.0,0.2789345]
[1751555818042,1.30846759,109530.0,109520.0,0.2789345]
[1751555818243,0.91406879,109530.0,109520.0,0.2789345]
[1751555818446,0.92106879,109530.0,109520.0,0.2799345]
[1751555818941,0.92006879,109530.0,109520.0,0.2799345]
[1751555819446,1.31446759,109530.0,109520.0,0.2799345]
[1751555819644,0.1825345,109520.0,109510.0,0.19910218]
[1751555819846,0.9733333,109520.0,109510.0,0.19910218]
[1751555821052,0.9773333,109520.0,109510.0,0.20010218]
[1751555821244,0.9109333,109520.0,109510.0,0.20010218]
[1751555821550,0.5165345,109520.0,109510.0,0.26100218]
[1751555823046,0.334,109520.0,109510.0,0.58100218]
[1751555823350,0.334,109520.0,109510.0,0.97540098]
[1751555823740,0.5165345,109520.0,109510.0,0.97540098]
[1751555824144,0.5165345,109520.0,109510.0,1.04962981]
[1751555824443,0.5165345,109520.0,109510.0,0.33523101]
[1751555824643,0.5165345,109520.0,109510.0,0.53100218]
[1751555824843,0.5165345,109520.0,109510.0,0.26100218]
[1751555827650,0.9109333,109520.0,109510.0,0.26100218]
[1751555828350,0.9109333,109520.0,109510.0,0.1835513]
[1751555828554,1.0057333,109520.0,109510.0,0.1835513]
[1751555828751,0.6113345,109520.0,109510.0,0.1835513]
[1751555828951,0.9439333,109520.0,109510.0,0.1835513]
[1751555829253,0.5165345,109520.0,109510.0,0.2451513]
[1751555831042,0.5474345,109520.0,109510.0,0.2451513]
[1751555831853,0.9418333,109520.0,109510.0,0.2451513]
[1751555832248,0.5474345,109520.0,109510.0,0.2451513]
[1751555832449,0.9418333,109520.0,109510.0,0.2451513]
[1751555833049,0.5474345,109520.0,109510.0,0.2451513]
[1751555833254,0.9418333,109520.0,109510.0,0.2451513]
[1751555833845,0.5474345,109520.0,109510.0,0.2451513]
[1751555834051,0.334,109520.0,109510.0,0.2451513]
[1751555834249,0.334,109520.0,109510.0,0.9495501]
[1751555834948,0.334,109520.0,109510.0,0.5551513]
[1751555835355,0.34903725,109520.0,109510.0,0.5551513]
[1751555835553,0.34903725,109520.0,109510.0,0.9495501]
[1751555835853,0.8467472,109520.0,109510.0,0.2451513]
[1751555836551,0.53157185,109520.0,109510.0,0.2451513]
[1751555837256,0.35664686,109530.0,109510.0,1.38295065]
[1751555837552,0.35664686,109530.0,109520.0,0.59300995]
[1751555837752,0.35664686,109530.0,109520.0,0.86300995]
[1751555837958,0.67182221,109530.0,109520.0,0.2978346]
[1751555838155,1.16951546,109530.0,109520.0,0.3324891]
[1751555838451,0.1825346,109520.0,109510.0,0.5617068]
[1751555838656,0.49770995,109520.0,109510.0,0.5070523]
[1751555838957,0.49770995,109520.0,109510.0,0.5060523]
[1751555839153,1.00811871,109530.0,109520.0,0.1825346]
[1751555839361,0.61521036,109530.0,109520.0,0.1825346]
[1751555839556,0.53916486,109530.0,109520.0,0.2135346]
[1751555839748,0.35764686,109530.0,109520.0,0.2461346]
[1751555839954,0.35764686,109530.0,109520.0,0.95005025]
[1751555840551,0.35764686,109530.0,109520.0,1.00470475]
[1751555841064,0.35764686,109530.0,109520.0,1.18731275]
[1751555841065,0.2470428,109530.0,109520.0,1.18731275]
[1751555841357,0.1961428,109530.0,109520.0,1.18731275]
[1751555841554,0.1961428,109530.0,109520.0,1.5812284]
[1751555841754,0.1462428,109530.0,109520.0,1.5812284]
[1751555841963,0.1462428,109530.0,109520.0,1.59951717]
[1751555842157,0.1462428,109530.0,109520.0,1.20560152]
[1751555842358,0.1462428,109530.0,109520.0,1.20660152]
[1751555843961,0.1462428,109530.0,109520.0,1.02399352]
[1751555844263,0.1462428,109530.0,109520.0,0.61170573]
[1751555844461,0.1462428,109530.0,109520.0,1.00662138]
[1751555845255,0.1462428,109530.0,109520.0,1.00663889]
[1751555848660,0.3287609,109530.0,109520.0,1.00663889]
[1751555848866,0.3287609,109530.0,109520.0,0.58012324]
[1751555849070,0.4228609,109530.0,109520.0,0.58012324]
[1751555850964,0.4228609,109530.0,109520.0,0.23812324]
[1751555851272,0.4228609,109530.0,109520.0,0.1825355]
[1751555851273,0.81677655,109530.0,109520.0,0.1825355]
[1751555853363,0.81777655,109530.0,109520.0,0.1825355]
[1751555853969,0.4238609,109530.0,109520.0,0.1825355]
[1751555854164,0.4238619,109530.0,109520.0,0.1825355]
[1751555854962,0.2433428,109530.0,109520.0,0.1825355]
[1751555855262,0.2423428,109530.0,109520.0,0.57645115]
[1751555855458,0.4228619,109530.0,109520.0,0.67365115]
[1751555855663,0.4228619,109530.0,109520.0,0.2797355]
[1751555855866,0.4228619,109530.0,109520.0,0.1825355]
[1751555859861,0.4228619,109530.0,109520.0,0.53087204]
[1751555860063,0.2087428,109530.0,109520.0,0.53087204]
[1751555860260,0.1462428,109530.0,109520.0,0.2157355]
[1751555860466,0.3287619,109530.0,109520.0,0.2464355]
[1751555860664,0.3287619,109530.0,109520.0,0.56157204]
[1751555860965,0.3601619,109530.0,109520.0,0.56157204]
[1751555861166,0.2413428,109530.0,109520.0,0.56157204]
[1751555861366,0.4238619,109530.0,109520.0,0.56157204]
[1751555861573,0.4238619,109530.0,109520.0,0.2464355]
[1751555861868,0.73899844,109530.0,109520.0,0.1825355]
[1751555862576,0.1825359,109520.0,109510.0,0.39400236]
[1751555862874,0.57600841,109520.0,109510.0,0.39400236]
[1751555863068,0.26087187,109520.0,109510.0,0.39400236]
[1751555863262,0.26087187,109520.0,109510.0,0.448591]
[1751555863463,0.26087187,109520.0,109510.0,0.39400236]
[1751555863871,0.66728061,109520.0,109500.0,0.14586954]
[1751555864172,0.59268904,109510.0,109500.0,0.2281979]
[1751555865367,0.59468904,109510.0,109500.0,0.2281979]
[1751555865568,0.59568904,109510.0,109500.0,0.2281979]
[1751555865774,0.2805525,109510.0,109500.0,0.2281979]
[1751555868173,0.67467979,109510.0,109500.0,0.2281979]
[1751555868874,0.69655913,109510.0,109500.0,0.2281979]
[1751555869072,0.67467979,109510.0,109500.0,0.2281979]
[1751555870669,0.2805525,109510.0,109500.0,0.2281979]
[1751555870869,0.67467979,109510.0,109500.0,0.2281979]
[1751555873381,0.29546596,109510.0,109500.0,0.2281979]
[1751555873567,0.03975611,109510.0,109500.0,0.62232519]
[1751555873874,0.01791346,109510.0,109500.0,1.03782519]
[1751555874577,0.01691346,109510.0,109500.0,1.22046519]
[1751555874872,0.01691346,109510.0,109500.0,1.52505383]
[1751555875175,0.01491346,109510.0,109500.0,1.27505383]
[1751555875374,0.02282,109520.0,109510.0,0.1825525]
[1751555875579,0.02282,109520.0,109510.0,1.19199386]
[1751555875872,0.02282,109520.0,109510.0,0.98631274]
[1751555876075,0.02282,109520.0,109510.0,1.04086869]
[1751555876776,0.02282,109520.0,109510.0,1.04085501]
[1751555877476,0.02282,109520.0,109510.0,0.98629906]
[1751555877776,0.02282,109520.0,109510.0,1.05957664]
[1751555877977,0.02282,109520.0,109510.0,1.06157664]
[1751555878177,0.02282,109520.0,109510.0,1.06257664]
[1751555878773,0.02282,109520.0,109510.0,1.06057664]
[1751555879868,0.02282,109520.0,109510.0,1.11515497]
[1751555880075,0.02282,109520.0,109510.0,1.06057664]
[1751555881778,0.1462428,109530.0,109520.0,0.1825358]
[1751555881982,0.1462428,109530.0,109520.0,1.03623988]
[1751555882175,0.1462428,109530.0,109520.0,0.72623988]
[1751555882375,0.1462428,109530.0,109520.0,1.03623988]
[1751555883081,0.1482428,109530.0,109520.0,1.03623988]
[1751555885885,0.1482428,109530.0,109520.0,0.95717568]
[1751555886885,0.1482428,109530.0,109520.0,0.92717568]
[1751555888489,0.1482428,109530.0,109520.0,0.34211259]
[1751555889088,0.3609619,109530.0,109520.0,0.24711259]
[1751555889282,0.3941619,109530.0,109520.0,0.4825358]
[1751555889484,0.2116428,109530.0,109520.0,0.79759889]
[1751555889681,0.2116428,109530.0,109520.0,0.5144358]
[1751555889988,0.2116428,109530.0,109520.0,0.53949889]
[1751555890488,0.3941619,109530.0,109520.0,0.53949889]
[1751555890690,0.70922499,109530.0,109520.0,0.1825358]
[1751555892384,0.3941619,109530.0,109520.0,0.1825358]
[1751555892590,0.70922499,109530.0,109520.0,0.1825358]
[1751555894891,0.1482428,109530.0,109520.0,0.77759889]
[1751555895090,0.1482428,109530.0,109520.0,1.18866198]
[1751555895292,0.1482428,109530.0,109520.0,0.92817568]
[1751555898091,0.1482428,109530.0,109520.0,0.26921259]
[1751555898291,0.49480589,109530.0,109520.0,0.23711259]
[1751555898491,0.55910589,109530.0,109520.0,0.50711259]
[1751555898785,0.74162499,109530.0,109520.0,0.23711259]
[1751555899378,0.74162499,109530.0,109520.0,0.55217568]
[1751555899379,0.2440428,109530.0,109520.0,0.55217568]
[1751555899883,0.2440428,109530.0,109520.0,0.1825358]
[1751555900691,0.2440428,109530.0,109520.0,0.4725358]
[1751555901289,0.2440428,109530.0,109520.0,0.52711259]
[1751555901487,0.2440428,109530.0,109520.0,0.55711259]
[1751555901785,0.2440428,109530.0,109520.0,0.23711259]
[1751555901996,0.2440428,109530.0,109520.0,0.55711259]
[1751555902180,0.25912639,109530.0,109520.0,0.23711259]
[1751555902386,0.44164549,109530.0,109520.0,0.23711259]
[1751555902586,0.25912639,109530.0,109520.0,0.23711259]
[1751555903288,0.25912639,109530.0,109520.0,0.54711259]
[1751555903481,0.44164539,109530.0,109520.0,0.23711259]
[1751555903889,0.44164539,109530.0,109520.0,0.50711259]
[1751555904091,0.44164539,109530.0,109520.0,0.52711259]
[1751555904390,0.44164539,109530.0,109520.0,0.23711259]
[1751555904582,0.83554849,109530.0,109520.0,0.23711259]
[1751555906495,0.44164539,109530.0,109520.0,0.23711259]
[1751555908293,0.25912639,109530.0,109520.0,0.51711259]
[1751555908490,0.16332639,109530.0,109520.0,0.91101569]
[1751555908691,0.16332639,109530.0,109520.0,1.02238217]
[1751555908891,0.16332639,109530.0,109520.0,1.41628527]
[1751555909195,0.16332639,109530.0,109520.0,1.59889327]
[1751555909396,0.13273839,109530.0,109520.0,1.84595]
[1751555909688,0.09498429,109530.0,109520.0,1.61712909]
[1751555910993,0.09498429,109530.0,109520.0,1.22322599]
[1751555911592,0.09498429,109530.0,109520.0,1.04061799]
[1751555911796,0.09498429,109530.0,109520.0,1.02235196]
[1751555912393,0.09498429,109530.0,109520.0,0.62844886]
[1751555912594,0.09498429,109530.0,109520.0,1.02235196]
[1751555913798,0.09498429,109530.0,109520.0,0.53544886]
[1751555914102,0.15968429,109530.0,109520.0,0.53544886]
[1751555915092,0.34220359,109530.0,109520.0,0.92935196]
[1751555915297,0.73610669,109530.0,109520.0,0.1825358]
[1751555915497,0.73610669,109530.0,109520.0,0.23721946]
[1751555915686,0.73610669,109530.0,109520.0,0.24791993]
[1751555916091,0.73410669,109530.0,109520.0,0.24791993]
[1751555916294,0.73410669,109530.0,109520.0,0.24891993]
[1751555916589,0.34020359,109530.0,109520.0,0.24891993]
[1751555916786,0.34220359,109530.0,109520.0,0.24891993]
[1751555917796,0.15968429,109530.0,109520.0,0.24791993]
[1751555918002,0.15968429,109530.0,109520.0,0.51791993]
[1751555918298,0.34220359,109530.0,109520.0,0.27821993]
[1751555918897,0.15968429,109530.0,109520.0,0.27821993]
[1751555919094,0.15968429,109530.0,109520.0,0.56821993]
[1751555919398,0.15968429,109530.0,109520.0,0.27821993]
[1751555919699,0.34220359,109530.0,109520.0,0.27821993]
[1751555919892,0.15968429,109530.0,109520.0,0.27821993]
[1751555920200,0.34220359,109530.0,109520.0,0.27821993]
[1751555921704,0.34220359,109530.0,109520.0,0.24791993]
[1751555922299,0.15968429,109530.0,109520.0,0.24791993]
[1751555922609,0.09498429,109530.0,109520.0,0.61823937]
[1751555922799,0.09498429,109530.0,109520.0,0.56901694]
[1751555923096,0.09498429,109530.0,109520.0,0.34391694]
[1751555923307,0.15948429,109530.0,109520.0,0.34391694]
[1751555923604,0.15948429,109530.0,109520.0,0.60391694]
[1751555923903,0.12748429,109530.0,109520.0,0.60491694]
[1751555924207,0.31000349,109530.0,109520.0,0.34491694]
[1751555924397,0.73560659,109530.0,109520.0,0.24891694]
[1751555924604,0.15918429,109530.0,109520.0,0.24891694]
[1751555925305,0.15918429,109530.0,109520.0,0.28061694]
[1751555925805,0.15918429,109530.0,109520.0,0.56061694]
[1751555926005,0.15718429,109530.0,109520.0,0.28061694]
[1751555926302,0.65484796,109530.0,109520.0,0.24891694]
[1751555928508,0.65484796,109530.0,109520.0,0.55891694]
[1751555929505,0.47232866,109530.0,109520.0,0.55891694]
[1751555929804,0.65484786,109530.0,109520.0,0.55891694]
[1751555930904,0.33970349,109530.0,109520.0,0.55891694]
[1751555931098,0.0779007,109530.0,109520.0,0.87406131]
[1751555931405,0.0779007,109530.0,109520.0,0.9858937]
[1751555931603,0.0779007,109530.0,109520.0,0.96766377]
[1751555931803,0.0779007,109530.0,109520.0,1.56795527]
[1751555932010,0.0779007,109530.0,109520.0,1.64086833]
[1751555932602,0.38362,109540.0,109530.0,0.1825193]
[1751555932905,0.38362,109540.0,109530.0,0.97551483]
[1751555933094,0.38362,109540.0,109530.0,1.04927033]
[1751555933501,0.38362,109540.0,109530.0,1.35637278]
[1751555933701,0.38362,109540.0,109530.0,0.97637278]
[1751555934002,0.38362,109540.0,109530.0,1.06755187]
[1751555934305,0.38362,109540.0,109530.0,0.97637278]
[1751555934606,0.38362,109540.0,109530.0,0.97736964]
[1751555935204,0.38362,109540.0,109530.0,1.05020702]
[1751555935906,0.38362,109540.0,109530.0,0.65645152]
[1751555936101,0.38362,109540.0,109530.0,1.05020702]
[1751555938305,0.38562,109540.0,109530.0,1.05020702]
[1751555939296,0.38362,109540.0,109530.0,1.05020702]
[1751555940604,0.38362,109540.0,109530.0,0.74020702]
[1751555940807,0.38362,109540.0,109530.0,1.03020702]
[1751555943207,0.38362,109540.0,109530.0,0.95736964]
[1751555943605,0.3608,109540.0,109530.0,0.95736964]
[1751555946910,0.38362,109540.0,109530.0,0.95736964]
[1751555947416,0.38362,109540.0,109530.0,1.01195417]
[1751555948812,0.38362,109540.0,109530.0,1.01195482]
[1751555949010,0.38362,109540.0,109530.0,0.95737029]
[1751555949312,0.3211525,109540.0,109530.0,1.33737029]
[1751555949508,0.3211525,109540.0,109530.0,1.03020767]
[1751555949711,0.2573049,109540.0,109530.0,1.41020767]
[1751555949904,1e-07,109550.0,109540.0,0.1825028]
[1751555950109,1e-07,109560.0,109550.0,0.1824862]
[1751555950409,1e-07,109560.0,109550.0,0.99070005]
[1751555951414,0.0040001,109560.0,109550.0,0.99070005]
[1751555951811,0.0040001,109560.0,109550.0,0.93612566]
[1751555952012,0.0030001,109560.0,109550.0,0.79447904]
[1751555952214,0.0689001,109560.0,109550.0,0.84904615]
[1751555952516,0.0689001,109560.0,109550.0,0.85826816]
[1751555952715,0.0362001,109560.0,109550.0,0.92326816]
[1751555953618,0.0352001,109560.0,109550.0,0.92326816]
[1751555953811,0.0362001,109560.0,109550.0,1.00194367]
[1751555954217,0.0362001,109560.0,109550.0,0.48879217]
[1751555954416,0.0691001,109560.0,109550.0,0.48879217]
[1751555954715,0.1002001,109560.0,109550.0,0.88237656]
[1751555955608,0.0362001,109560.0,109550.0,0.94537501]
[1751555956005,0.0030001,109560.0,109550.0,0.94537501]
[1751555956218,0.0030001,109560.0,109550.0,0.99994212]
[1751555959318,0.0030001,109560.0,109550.0,1.01814621]
[1751555960418,0.0359001,109560.0,109550.0,1.01814621]
[1751555961923,0.0030001,109560.0,109550.0,1.01814621]
[1751555962321,0.0030001,109560.0,109550.0,0.98644621]
[1751555962516,0.0359001,109560.0,109550.0,0.98644621]
[1751555962824,0.0664001,109560.0,109550.0,0.98644621]
[1751555963522,0.0664001,109560.0,109550.0,1.01844621]
[1751555963523,0.0359001,109560.0,109550.0,1.01844621]
[1751555964117,0.0359001,109560.0,109550.0,1.01844583]
[1751555964322,0.0030001,109560.0,109550.0,1.01844583]
[1751555966428,0.0030001,109560.0,109550.0,1.34844583]
[1751555966618,0.0030001,109560.0,109550.0,1.01844583]
[1751555968822,0.0030001,109560.0,109550.0,0.62486144]
[1751555969027,0.0030001,109560.0,109550.0,1.01844583]
[1751555969532,0.0030001,109560.0,109550.0,0.62486144]
[1751555969727,0.0030001,109560.0,109550.0,1.01844583]
[1751555970727,0.0030001,109560.0,109550.0,1.01844524]
[1751555971428,0.0030001,109560.0,109550.0,1.03685313]
[1751555972028,0.0030001,109560.0,109550.0,1.10970846]
[1751555972231,0.0030001,109560.0,109550.0,1.01852937]
[1751555973131,0.0030001,109560.0,109550.0,1.33852937]
[1751555973424,1e-07,109560.0,109550.0,1.69925832]
[1751555973730,1e-07,109560.0,109550.0,1.34685302]
[1751555973928,1e-07,109560.0,109550.0,1.36685302]
[1751555974132,1e-07,109560.0,109550.0,1.40332466]
[1751555974520,1e-07,109560.0,109550.0,1.49438036]
[1751555974925,1e-07,109560.0,109550.0,1.36672963]
[1751555975733,1e-07,109560.0,109550.0,1.27280176]
[1751555975933,1e-07,109560.0,109550.0,1.62280176]
[1751555976128,1e-07,109560.0,109550.0,1.27280176]
[1751555976333,1e-07,109560.0,109550.0,1.60280176]
[1751555976631,1e-07,109560.0,109550.0,1.27280176]
[1751555976833,1e-07,109560.0,109550.0,1.59280176]
[1751555977034,1e-07,109560.0,109550.0,1.27280176]
[1751555977333,1e-07,109560.0,109550.0,1.60280176]
[1751555977524,1e-07,109560.0,109550.0,0.9579735]
[1751555977928,1e-07,109560.0,109550.0,0.8946735]
[1751555978129,0.37752836,109560.0,109550.0,0.29166706]
[1751555978327,0.59069786,109560.0,109550.0,0.26424575]
[1751555978533,1.33808612,109560.0,109550.0,0.05467822]
[1751555978733,0.84069786,109560.0,109550.0,0.21893965]
[1751555979128,0.59069786,109560.0,109550.0,0.21893965]
[1751555979934,0.66968512,109560.0,109550.0,0.21893965]
[1751555980137,0.1824862,109550.0,109540.0,0.37403702]
[1751555980336,0.64010172,109550.0,109540.0,0.37403702]
[1751555980936,0.64010172,109550.0,109540.0,0.32841202]
[1751555981137,1.07267773,109550.0,109540.0,0.228111]
[1751555981434,1.07267773,109550.0,109540.0,0.1835029]
[1751555983738,0.82267773,109550.0,109540.0,0.1835029]
[1751555984935,0.82267773,109550.0,109540.0,0.1845029]
[1751555985135,0.42886221,109550.0,109540.0,0.1845029]
[1751555985338,0.82267773,109550.0,109540.0,0.1845029]
[1751555985937,0.82367773,109550.0,109540.0,0.1835029]
[1751555986234,0.82367773,109550.0,109540.0,0.1825029]
[1751555986439,0.82667773,109550.0,109540.0,0.1825029]
[1751555987236,0.43286221,109550.0,109540.0,0.1825029]
[1751555987439,0.82667773,109550.0,109540.0,0.1825029]
[1751555987635,0.64410172,109550.0,109540.0,0.1825029]
[1751555988040,0.2502862,109550.0,109540.0,0.1825029]
[1751555988540,0.64410172,109550.0,109540.0,0.1825029]
[1751555988741,0.1825026,109540.0,109530.0,0.2737673]
[1751555989044,0.67341812,109540.0,109530.0,0.2737673]
[1751555989738,0.2796026,109540.0,109530.0,0.2737673]
[1751555989943,0.2806026,109540.0,109530.0,0.2737673]
[1751555991539,0.28187927,109540.0,109530.0,0.2737673]
[1751555992438,0.67569479,109540.0,109530.0,0.1825081]
[1751555992637,0.1825193,109530.0,109520.0,0.2737919]
[1751555992838,0.63913482,109530.0,109520.0,0.2737919]
[1751555993039,0.71124933,109530.0,109520.0,0.1825269]
[1751555993238,0.182536,109520.0,109510.0,0.2922562]
[1751555993438,0.68676005,109520.0,109510.0,0.2922562]
[1751555993834,0.29294453,109520.0,109510.0,0.2922562]
[1751555994239,0.29294453,109520.0,109510.0,0.28468423]
[1751555994844,0.29294453,109520.0,109510.0,0.28568423]
[1751555995246,0.07770853,109520.0,109510.0,0.28568423]
[1751555995545,0.26024423,109520.0,109510.0,0.31758423]
[1751555995744,0.26024423,109520.0,109510.0,0.27663693]
[1751555996046,0.29034423,109520.0,109510.0,0.27663693]
[1751555996444,0.29034423,109520.0,109510.0,1.00045245]
[1751555996445,0.04720853,109520.0,109510.0,1.00045245]
[1751555996645,0.04720853,109520.0,109510.0,1.01495245]
[1751555996949,0.04820853,109520.0,109510.0,1.01495245]
[1751555998046,0.04720853,109520.0,109510.0,1.01595245]
[1751555998242,0.04720853,109520.0,109510.0,1.01495245]
[1751555998946,0.22974443,109520.0,109510.0,1.01595245]
[1751555999148,0.01490853,109520.0,109510.0,1.01595245]
[1751555999446,0.41081241,109530.0,109520.0,0.1825359]
[1751555999648,0.41081241,109530.0,109520.0,0.2140359]
[1751555999948,0.31953371,109530.0,109520.0,0.60785142]
[1751556000247,0.31953371,109530.0,109520.0,0.2468359]
[1751556000640,0.32053371,109530.0,109520.0,0.2468359]
[1751556000846,0.001,109530.0,109520.0,0.93145142]
[1751556001648,0.001,109530.0,109520.0,1.00378551]
[1751556003050,0.001,109530.0,109520.0,0.5376359]
[1751556003255,0.0323,109530.0,109520.0,0.5376359]
[1751556003755,0.001,109530.0,109520.0,0.93145142]
[1751556005256,0.001,109530.0,109520.0,0.98612964]
[1751556007056,0.1829732,109540.0,109530.0,0.1825193]
[1751556007259,0.1829732,109540.0,109530.0,0.2465193]
[1751556007659,0.63838872,109540.0,109530.0,0.2465193]
[1751556007862,0.06207,109540.0,109530.0,0.2465193]
[1751556008065,0.2130726,109540.0,109530.0,0.2465193]
[1751556008362,0.2140726,109540.0,109530.0,0.30119752]
[1751556009668,0.2473726,109540.0,109530.0,0.30119752]
[1751556010162,0.2473726,109540.0,109530.0,0.33765326]
[1751556010663,0.2473726,109540.0,109530.0,0.27365326]
[1751556010863,0.64118812,109540.0,109530.0,0.27365326]
[1751556011065,0.64118812,109540.0,109530.0,0.21897504]
[1751556011262,0.64118812,109540.0,109530.0,0.27365326]
[1751556011662,0.64118812,109540.0,109530.0,0.1825193]
[1751556011964,0.64118812,109540.0,109530.0,0.21897504]
[1751556012163,0.64118812,109540.0,109530.0,0.03645574]
[1751556012363,0.1825192,109530.0,109520.0,0.21897634]
[1751556012663,0.67183472,109530.0,109520.0,0.21897634]
[1751556013359,0.67183472,109530.0,109520.0,0.1825206]
[1751556013758,0.67183472,109530.0,109520.0,0.1835206]
[1751556013958,0.67183472,109530.0,109520.0,0.1845206]
[1751556014359,0.85444272,109530.0,109520.0,0.1845206]
[1751556015069,0.85444272,109530.0,109520.0,0.1835206]
[1751556015260,0.85544272,109530.0,109520.0,0.1835206]
[1751556015461,0.85544272,109530.0,109520.0,0.1835358]
[1751556015662,0.67283472,109530.0,109520.0,0.1835358]
[1751556016663,0.2820192,109530.0,109520.0,0.1825358]
[1751556016968,0.67583472,109530.0,109520.0,0.1825358]
[1751556017464,0.2820192,109530.0,109520.0,0.1825358]
[1751556018069,0.59720804,109530.0,109520.0,0.1825358]
[1751556025465,0.1825363,109520.0,109510.0,0.03828197]
[1751556025663,0.57802994,109520.0,109510.0,0.00182623]
[1751556025972,0.1825696,109500.0,109490.0,0.03645574]
[1751556026269,0.1825861,109490.0,109480.0,0.42275685]
[1751556026469,0.56287494,109490.0,109480.0,0.39095685]
[1751556027374,0.56287494,109490.0,109480.0,0.37414754]
[1751556027673,0.56287494,109490.0,109480.0,0.38341082]
[1751556027873,0.2476861,109490.0,109480.0,0.38341082]
[1751556028076,0.64196658,109490.0,109480.0,0.38741082]
[1751556028374,0.64196658,109490.0,109480.0,0.27520568]
[1751556028775,0.64243658,109490.0,109480.0,0.27520568]
[1751556029275,0.71650879,109490.0,109480.0,0.27520568]